Cogmind - Beta 14 @@@ ROGUE MODE // 2024.09.04 @ 22:03:32 Player: Lord Draconis Result: Destroyed by G-67 Veteran with Field Laser Performance ------------- Evolutions (5) 2500 Regions Visited (12) 2400 Robots Destroyed (163) 815 Value Destroyed (6031) 6031 Prototype IDs (13) 260 Alien Tech Used (0) 0 Bonus (1714) 1714 TOTAL SCORE: 13720 Bonus ------- High Alert Combat Kills 329 Follower Combat Kills 91 Met Warlord at Base 500 MAIN.C Attacked Warlord 500 Warlord Defense Kills 364 Friendly Fire -70 Cogmind --------- Core Integrity 0/1000 Matter 165/300 Energy 160/160 System Corruption 2% Temperature Cool (0) Movement Flying (26) Location -4/Proximity Caves Parts ------- > --- POWER (2) -------- Light Nuclear Core > --- PROPULSION (4) --- VTOL Module VTOL Module VTOL Module VTOL Module > --- UTILITY (8) ------ Improved Melee Analysis Suite Core Analyzer > --- WEAPON (3) ------- Bore Cannon > --- INVENTORY (5) ---- Reinforced Deuterium Engine Armored Wheel Armored Wheel Heavy Machine Gun Peak State ------------ > --- POWER ------------ Neutrino Core Micro Fission Core > --- PROPULSION ------- Improved Medium Treads Armored Medium Treads Armored Medium Treads Armored Medium Treads > --- UTILITY ---------- Advanced Cooling System Huge Storage Unit Advanced Signal Interpreter Improved Targeting Computer Advanced Targeting Computer Core Analyzer Hardened Heavy Armor Plating > --- WEAPON ----------- Vortex Shotgun KE Penetrator Bore Cannon > --- INVENTORY -------- Improved Deuterium Engine Reinforced Deuterium Engine Improved Medium Treads Armored Medium Treads Armored Wheel Advanced Heat Sink High-capacity Matter Pod Improved Kinecellerator Weapon Cycler Improved Medium Armor Plating Layered Light Armor Plating Vortex Shotgun Heavy Plasma Cannon Heavy Phase Cannon Coil Gun Heavy Machine Gun Bore Cannon Linear Accelerator Linear Accelerator Linear Accelerator Long-range Missile Launcher Long-range Missile Launcher Long-range Missile Launcher Long-range Missile Launcher Phasing Sabre [Rating: 97] Favorites ----------- Power Light Nuclear Core Engine Light Angular Momentum Engine Power Core Light Nuclear Core Propulsion Light Treads Treads Light Treads Leg Flexi-carbon Leg Wheel Armored Wheel Hover Unit Improved Antigrav System Flight Unit VTOL Module Utility Huge Storage Unit Device Seismic Detector Storage Huge Storage Unit Processor Advanced Targeting Computer Protection Makeshift Light Armor Plating Weapon Improved Medium Laser Energy Gun Improved Medium Laser Energy Cannon Long-range Proton Cannon Ballistic Gun KE Penetrator Ballistic Cannon Improved Light Cannon Launcher Long-range Missile Launcher Slashing Weapon Blade Saw Build | -11 -10 -10 -9 -9 -7 -6 -6 -5 -5 -5 -5 -4 ------- Run | Yrd Mat Min Mat Min Zio Pro Fac Fac Upp Upp War Pro Slots Evolved 10 | . . . 2 . . . 6 2 . . . . Power 1 | . . . . . . . . 1 . . . . Propulsion 2 | . . . 1 . . . 1 . . . . . Utility 6 | . . . 1 . . . 4 1 . . . . Weapon 1 | . . . . . . . 1 . . . . . Parts Attached 169 | 8 10 5 25 . 7 2 16 46 8 11 11 20 Power 26 | 1 3 3 1 . 2 . 2 6 2 1 2 3 Engine 10 | 1 3 . . . . . 2 2 1 . . 1 Core 16 | . . 3 1 . 2 . . 4 1 1 2 2 Reactor . | . . . . . . . . . . . . . Propulsion 47 | 2 4 2 7 . . . 2 13 . 2 6 9 Treads 30 | 2 3 2 7 . . . 2 8 . 2 4 . Leg 2 | . . . . . . . . 2 . . . . Wheel 6 | . 1 . . . . . . 3 . . 2 . Hover 1 | . . . . . . . . . . . . 1 Flight 8 | . . . . . . . . . . . . 8 Utility 29 | 2 1 . 3 . 1 . 4 15 . 1 1 1 Device 12 | 1 . . . . . . 2 8 . . 1 . Storage 3 | 1 1 . . . . . . 1 . . . . Processor 6 | . . . . . . . 1 3 . 1 . 1 Hackware . | . . . . . . . . . . . . . Protection 8 | . . . 3 . 1 . 1 3 . . . . Artifact . | . . . . . . . . . . . . . Weapon 67 | 3 2 . 14 . 4 2 8 12 6 7 2 7 Energy Gun 26 | 2 1 . 7 . 2 . 1 6 . 4 1 2 Energy Cannon 1 | . . . . . . . . . . 1 . . Ballistic Gun 16 | 1 1 . . . . 1 5 2 3 . . 3 Ballistic Cannon 10 | . . . 4 . 1 . . 2 . . 1 2 Launcher 12 | . . . 3 . . 1 1 2 3 2 . . Special Weapon . | . . . . . . . . . . . . . Impact Weapon . | . . . . . . . . . . . . . Slashing Weapon 2 | . . . . . 1 . 1 . . . . . Piercing Weapon . | . . . . . . . . . . . . . Special Melee Weapon . | . . . . . . . . . . . . . Unidentified Prototypes 3 | . . . 2 . . . . . . . 1 . Corrupted Parts 1 | . . . . . . . . . . . 1 . System Corruption 1 | . . . . . . . . . . . 1 . Parts Lost 38 | . 4 1 3 . . . 7 14 . . 5 4 Power 7 | . 2 1 . . . . 1 1 . . 1 1 Propulsion 13 | . 1 . 1 . . . 3 5 . . 1 2 Utility 10 | . . . 2 . . . 1 3 . . 3 1 Weapon 8 | . 1 . . . . . 2 5 . . . . Highest Loss Streak 5 | . 3 1 1 . . . 4 5 . . 4 2 To Critical Strikes 1 | . . . . . . . 1 . . . . . Average Slot Usage (%) 95 | . 99 99 96 100 100 100 97 97 93 93 93 34 Engine 3 | . 13 2 . . . . 4 6 5 . . 1 Core 7 | . . 11 11 11 11 11 1 3 4 10 10 1 Treads 24 | . 20 28 32 33 33 33 25 13 23 23 22 . Wheel 1 | . 7 . . . . . . 3 . . . . Device 10 | . 14 14 11 11 11 11 19 16 5 5 4 1 Storage 8 | . 14 14 11 11 11 11 6 5 5 5 4 . Processor 7 | . . . . . . . 5 16 17 17 22 12 Protection 7 | . . . 8 11 11 11 12 5 11 11 4 . Energy Gun 9 | . 14 14 10 11 10 11 6 5 11 8 8 1 Ballistic Gun 5 | . 14 14 . . . 2 12 6 3 5 4 2 Ballistic Cannon 4 | . . . 10 11 11 8 . 2 . . 1 . Peak Build Rating 97 | 7 11 15 19 17 25 28 45 86 87 90 97 43 Average Rating 44 | 5 8 14 17 17 22 25 43 75 86 88 92 25 On Entrance 33 | . 7 11 15 17 17 25 28 38 86 87 90 16 Naked Turns . | . . . . . . . . . . . . . Heaviest Build 160 | 12 90 92 99 96 99 101 109 133 136 141 160 27 Greatest Support 111 | 40 40 42 62 60 60 60 80 109 109 111 111 16 Greatest Overweight (x) 29 | . 29 4 2 1 1 1 2 10 1 1 8 2 Average Overweight (x) 2 | . 8 2 1 1 1 1 1 7 1 1 1 . Largest Inventory Capacity 25 | 8 25 25 25 25 25 25 25 25 25 25 25 5 Average Capacity 24 | 7 24 25 25 25 25 25 25 25 25 25 24 5 Most Carried 25 | 2 22 25 25 25 25 25 25 25 25 25 25 5 Average Carried 22 | 1 14 23 24 24 24 24 20 24 24 24 24 4 Final Capacity 25 | 8 25 25 25 25 25 25 25 25 25 25 5 5 Final Carried 25 | 2 21 25 25 25 25 25 19 25 25 25 5 4 Class Distribution -------------------- 51% | Mutant 39% | Scavenger-Gunner Dominant Class ---------------- Mutant | -10/Materials Mutant | -10/Mines Mutant | -9/Materials Mutant | -9/Mines Mutant | -7/Zion Mutant | -6/Proximity Caves Derelict-Tank | -6/Factory Scavenger-Gunner | -5/Factory Scavenger-Gunner | -5/Upper Caves Scavenger-Gunner | -5/Upper Caves Scavenger-Gunner | -5/Warlord Sprinter | -4/Proximity Caves Resources | -11 -10 -10 -9 -9 -7 -6 -6 -5 -5 -5 -5 -4 ----------- Run | Yrd Mat Min Mat Min Zio Pro Fac Fac Upp Upp War Pro Matter Collected 4117 | 281 233 75 769 24 70 74 238 1207 250 482 145 269 Remotely . | . . . . . . . . . . . . . Salvage Created 5667 | 103 504 252 1047 18 . 167 398 1815 510 363 162 328 Parts 307 | 3 36 12 64 2 . 12 24 103 13 20 5 13 Haulers Intercepted 5 | . 2 . 3 . . . . . . . . . Recyclers Shooed 10 | . 1 . 2 . . . . 7 . . . . Parts Field Recycled . | . . . . . . . . . . . . . Retrieved Matter . | . . . . . . . . . . . . . Parts Self-Destructed 42 | . . . . . . 14 . . 7 12 . 9 Prevented . | . . . . . . . . . . . . . Kills | -11 -10 -10 -9 -9 -7 -6 -6 -5 -5 -5 -5 -4 ------- Run | Yrd Mat Min Mat Min Zio Pro Fac Fac Upp Upp War Pro Combat Hostiles Destroyed 139 | . 17 2 27 2 . 6 9 37 14 10 3 12 Guns 78 | . 17 2 6 2 . 2 5 26 2 4 1 11 Cannons 20 | . . . 12 . . . . 5 . . 2 1 AOE 41 | . . . 9 . . 4 4 6 12 6 . . Classes Destroyed 18 | 2 3 . 2 1 . . 3 5 . 2 . . Worker 7 | . . . 1 . . . 1 5 . . . . Builder 3 | . . . . . . . 1 2 . . . . Tunneler 1 | 1 . . . . . . . . . . . . Hauler 5 | . 2 . 3 . . . . . . . . . Recycler 5 | 1 . 2 1 . . . . 1 . . . . Operator 1 | . . . . . . . . 1 . . . . Watcher 3 | . . . . . . . 1 2 . . . . Swarmer 53 | . 9 . 4 1 . 4 3 11 7 4 . 10 Grunt 53 | . 8 2 16 . . 2 3 10 6 2 2 2 Brawler 1 | . . . . . . . . . . 1 . . Duelist 1 | . . . . . . . . 1 . . . . Sentry 12 | . . . 7 . . . 1 3 1 . . . Specialist 2 | . . . . . . . . 1 . . 1 . Hunter 6 | . . . . . . . 2 2 . 2 . . Programmer 8 | . . . . . . . . 8 . . . . Heavy 1 | . . . . . . . . 1 . . . . Assembled 1 | . . . . 1 . . . . . . . . Mutant 1 | . . . . . . . . . . 1 . . Best Kill Streak 7 | 2 6 4 4 1 . 4 5 7 5 4 2 5 Combat Bots Only 6 | . 6 2 4 1 . 4 4 5 5 4 2 5 Max Kills in Single Turn 7 | 1 2 1 4 1 . 2 3 7 3 2 1 1 Gunslinging 1 | . 1 . . . . . . . . . . . Exploded 4 | . . . 4 . . 2 2 4 3 2 . . Melee . | . . . . . . . . . . . . . Uniques/NPCs Destroyed . | . . . . . . . . . . . . . Combat | -11 -10 -10 -9 -9 -7 -6 -6 -5 -5 -5 -5 -4 -------- Run | Yrd Mat Min Mat Min Zio Pro Fac Fac Upp Upp War Pro Hostile Shots Fired 762 | . 80 13 109 12 . 29 101 155 55 39 101 68 Missed 223 | . 21 3 34 3 . 4 28 43 21 12 36 18 Damage Taken 9197 | . 598 167 982 71 . 457 1077 2587 633 449 1390 786 Core 1411 | . 121 30 134 . . 12 100 297 16 44 449 208 Absorbed by Shields 17 | . . . . . . . . 17 . . . . Ignored by Resistances 86 | . . . . . . . . 86 . . . . Regen/Repaired (Parts) 673 | . . . . . 522 . . . . . 151 . Core Remaining (%) 72 | 100 . 39 . . . 63 88 . . . . . Volleys Fired 361 | 4 60 12 76 6 . 17 25 81 26 18 3 33 Largest 3 | 2 2 2 2 2 . 2 3 3 3 3 3 2 Hottest 202 | 70 85 85 104 104 . 116 142 202 180 170 150 87 Shots Fired 751 | 8 119 18 147 12 . 18 68 226 41 39 9 46 Gun 589 | 8 119 18 71 6 . 15 66 189 28 34 6 29 Cannon 132 | . . . 71 6 . 1 . 34 . . 3 17 Launcher 30 | . . . 5 . . 2 2 3 13 5 . . Special . | . . . . . . . . . . . . . Kinetic 406 | 4 59 12 71 6 . 15 45 138 3 14 6 33 Thermal 299 | 4 60 6 71 6 . 1 21 85 25 20 . . Explosive 30 | . . . 5 . . 2 2 3 13 5 . . Electromagnetic . | . . . . . . . . . . . . . Entropic 16 | . . . . . . . . . . . 3 13 Robot Hit Streak 29 | 2 10 8 12 4 . 7 18 29 12 9 4 5 Robot Miss Streak 9 | 3 3 1 6 9 . 3 5 3 3 2 2 4 Penetration Max 1 | . . . . . . . 1 1 . . 1 . Secondary Targets 10 | . 3 1 . . . . . 5 . 1 . . Max Gunslinging Chain 1 | . 1 1 . . . . . 1 . 1 . . Shots Hit Robots 506 | 3 71 15 93 7 . 11 43 186 29 18 8 22 Core Hits 329 | 3 34 9 47 11 . 7 23 119 29 23 6 18 Critical Kills 4 | . 2 . . . . . . . . . 2 . Critical Parts Destroyed 4 | . . . . . . . 2 . . . . 2 Critical Strikes 28 | . 4 . 7 . . . 3 6 4 . 2 2 Burn 17 | . 2 . 6 . . . 1 4 4 . . . Destroy 8 | . 2 . . . . . 2 . . . 2 2 Blast 3 | . . . 1 . . . . 2 . . . . Melee Attacks 2 | . . . . . . . 2 . . . . . Impact . | . . . . . . . . . . . . . Slashing 2 | . . . . . . . 2 . . . . . Piercing . | . . . . . . . . . . . . . Sneak Attacks . | . . . . . . . . . . . . . Combat Hostiles . | . . . . . . . . . . . . . Follow-up Attacks . | . . . . . . . . . . . . . Damage Inflicted 14455 | 46 745 157 2197 140 . 392 1235 5558 2089 1082 250 564 Guns 7652 | 46 745 147 652 76 . 208 912 3533 418 243 172 500 Cannons 1964 | . . . 929 64 . . . 845 . . 62 64 Explosions 4803 | . . . 610 . . 184 323 1176 1671 839 . . Melee . | . . . . . . . . . . . . . Ramming 36 | . . 10 6 . . . . 4 . . 16 . Kinetic 5494 | 9 311 102 929 64 . 208 615 2655 21 103 179 298 Thermal 4147 | 37 434 45 652 76 . . 297 2069 397 140 . . Explosive 4457 | . . . 610 . . 184 323 830 1671 839 . . Electromagnetic . | . . . . . . . . . . . . . Impact . | . . . . . . . . . . . . . Slashing . | . . . . . . . . . . . . . Piercing . | . . . . . . . . . . . . . Entropic 321 | . . . . . . . . . . . 55 266 Highest Corruption 6 | . 1 1 . . . . 1 6 6 6 6 2 Average Corruption 3 | . 1 1 . . . . 1 3 6 6 2 2 Corruption Purged . | . . . . . . . . . . . . . Corruption Blocked . | . . . . . . . . . . . . . Effects 151 | . 6 7 . . . . . 35 40 48 6 9 Message Errors 30 | . . 2 . . . . . 6 7 11 1 3 Matter Fused 35 | . 2 . . . . . . 6 12 12 . 3 Heat Flow Errors 27 | . 1 2 . . . . . 7 7 9 1 . Energy Discharges 14 | . 2 1 . . . . . 3 2 4 1 1 Parts Rejected 4 | . . . . . . . . 2 1 . . 1 Parts Fused 1 | . . . . . . . . . . 1 . . Data Loss (minor) 21 | . 1 1 . . . . . 7 4 6 1 1 Data Loss (major) 7 | . . . . . . . . . 3 3 1 . Misfires 6 | . . 1 . . . . . 2 1 2 . . Alerts 3 | . . . . . . . . 1 1 . 1 . Weapon Failures 3 | . . . . . . . . 1 2 . . . Overload Shots . | . . . . . . . . . . . . . Overflow Damage 246 | . . . 30 . . . . 110 83 19 . 4 Projectiles 17 | . . . . . . . . 13 . . . 4 Explosions 229 | . . . 30 . . . . 97 83 19 . . Melee . | . . . . . . . . . . . . . Knockbacks 18 | . . . 7 2 . . . 5 . . . 4 Impact . | . . . . . . . . . . . . . Kinetic 16 | . . . 6 2 . . . 5 . . . 3 Secondary 2 | . . . 1 . . . . . . . . 1 Self-Inflicted Damage 237 | . . . . . . . . 109 53 67 8 . Shots 4 | . . . . . . . . 2 1 1 . . Rammed 6 | . . 2 1 . . . . 1 . . 2 . Targets Rammed 6 | . . 2 1 . . . . 1 . . 2 . Kicked . | . . . . . . . . . . . . . Crushed . | . . . . . . . . . . . . . Highest Temperature 353 | 80 186 257 330 144 . 66 353 301 211 225 102 24 Average Temperature 74 | 40 64 108 83 67 . 26 121 69 64 79 18 13 Received Heat Transfer 2013 | . 207 78 468 20 . 123 171 375 102 135 313 21 Effects 3 | . . 3 . . . . . . . . . . Interference 3 | . . 3 . . . . . . . . . . Siege Activations . | . . . . . . . . . . . . . Robots Corrupted . | . . . . . . . . . . . . . Combat Hostiles . | . . . . . . . . . . . . . Parts Fried . | . . . . . . . . . . . . . Impact Corruptions . | . . . . . . . . . . . . . Robots Melted . | . . . . . . . . . . . . . Combat Hostiles . | . . . . . . . . . . . . . Parts Melted 17 | 1 2 . 1 . . 1 2 10 . . . . Heat Transferred 9746 | 111 1369 111 2092 85 . . 555 4091 1036 296 . . Parts Sabotaged 11 | . . . . . . . . . . . 11 . Parts Stolen . | . . . . . . . . . . . . . Parts Stripped . | . . . . . . . . . . . . . Power Chain Reactions . | . . . . . . . . . . . . . Alert | -11 -10 -10 -9 -9 -7 -6 -6 -5 -5 -5 -5 -4 ------- Run | Yrd Mat Min Mat Min Zio Pro Fac Fac Upp Upp War Pro Peak Influence 984 | 10 294 60 474 165 . . 692 984 . . . . Initial 649 | . 6 25 . 150 . . 649 169 . . . . Average 205 | 4 118 12 214 96 . . 546 312 . . . . Maximum Alert Level 3 | . 1 . 2 . . . 2 3 . . . . Low Security (%) 60 | 100 93 100 55 100 . . . 24 . . . . Level 1 23 | . 6 . 19 . . . 10 62 . . . . Level 2 12 | . . . 25 . . . 89 . . . . . Level 3 3 | . . . . . . . . 12 . . . . Level 4 . | . . . . . . . . . . . . . Level 5 . | . . . . . . . . . . . . . High Security . | . . . . . . . . . . . . . Max Security . | . . . . . . . . . . . . . Squads Dispatched 21 | . 4 . 2 1 . . 5 9 . . . . Investigation 4 | . 2 . 1 . . . 1 . . . . . Extermination 5 | . . . . . . . 1 4 . . . . Reinforcement 7 | . 2 . 1 . . . . 4 . . . . Assault 1 | . . . . 1 . . . . . . . . Garrison 4 | . . . . . . . 3 1 . . . . Intercept . | . . . . . . . . . . . . . Searches Triggered 2 | . . . . . . . 2 . . . . . Construction Impeded 1 | . . . . . . . . 1 . . . . Haulers Reinforced . | . . . . . . . . . . . . . Active Scanning Responses . | . . . . . . . . . . . . . Cargo Convoy Interrupts . | . . . . . . . . . . . . . Stealth | -11 -10 -10 -9 -9 -7 -6 -6 -5 -5 -5 -5 -4 --------- Run | Yrd Mat Min Mat Min Zio Pro Fac Fac Upp Upp War Pro Distress Signals 8 | . 3 . 4 . . . . 1 . . . . Communications Jammed . | . . . . . . . . . . . . . Distress Signals . | . . . . . . . . . . . . . Times Spotted 231 | . 39 2 45 7 . 8 11 47 15 10 30 17 Peak Tracking Total 21 | . 5 2 6 3 . 4 4 5 5 4 21 5 Tactical Retreats 7 | . 3 . . . . . . . 1 . 1 2 Traps | -11 -10 -10 -9 -9 -7 -6 -6 -5 -5 -5 -5 -4 ------- Run | Yrd Mat Min Mat Min Zio Pro Fac Fac Upp Upp War Pro Traps Triggered 9 | . 3 2 1 . . . 1 2 . . . . Indirectly . | . . . . . . . . . . . . . Trap Hack Attempts . | . . . . . . . . . . . . . Triggered . | . . . . . . . . . . . . . Disarmed . | . . . . . . . . . . . . . Reprogrammed . | . . . . . . . . . . . . . Reused . | . . . . . . . . . . . . . Traps Extracted . | . . . . . . . . . . . . . Installed . | . . . . . . . . . . . . . Triggered 10 | . . . . . . . . . . . 10 . Machines | -11 -10 -10 -9 -9 -7 -6 -6 -5 -5 -5 -5 -4 ---------- Run | Yrd Mat Min Mat Min Zio Pro Fac Fac Upp Upp War Pro Machines Disabled 31 | . . . 1 . . . . 29 . 1 . . Max in Single Turn 23 | . . . 1 . . . . 23 . 1 . . Garrison Access 1 | . . . . . . . . 1 . . . . Machines Repaired . | . . . . . . . . . . . . . Machines Dismantled . | . . . . . . . . . . . . . Machines Sabotaged . | . . . . . . . . . . . . . Overloaded Fab Kills . | . . . . . . . . . . . . . Hacking | -11 -10 -10 -9 -9 -7 -6 -6 -5 -5 -5 -5 -4 --------- Run | Yrd Mat Min Mat Min Zio Pro Fac Fac Upp Upp War Pro Machines Accessed 21 | . 7 1 4 . . . 1 4 . . 3 1 Terminals 11 | . 5 . 3 . . . . 2 . . . 1 Fabricators . | . . . . . . . . . . . . . Repair Stations . | . . . . . . . . . . . . . Recycling Units 5 | . 2 . 1 . . . 1 1 . . . . Scanalyzers . | . . . . . . . . . . . . . Garrison Access 1 | . . . . . . . . 1 . . . . Total Hacks 44 | . 16 1 11 . . . 1 6 . . 8 1 Successful 16 | . 1 1 4 . . . . 1 . . 8 1 Failed 27 | . 15 . 6 . . . 1 5 . . . . Catastrophic 6 | . 4 . . . . . . 2 . . . . Database Lockouts 1 | . . . 1 . . . . . . . . . Manual 15 | . 8 . 3 . . . . 3 . . . 1 Terminals 23 | . 10 . 9 . . . . 3 . . . 1 Fabricators . | . . . . . . . . . . . . . Repair Stations . | . . . . . . . . . . . . . Recycling Units 10 | . 6 . 2 . . . 1 1 . . . . Scanalyzers . | . . . . . . . . . . . . . Garrison Access 2 | . . . . . . . . 2 . . . . Terminal Hacks 13 | . . 1 3 . . . . . . . 8 1 Record 3 | . . . . . . . . . . . 2 1 Part Schematic 1 | . . . 1 . . . . . . . . . Prototype ID Bank 5 | . . . . . . . . . . . 5 . Open Door 2 | . . 1 . . . . . . . . 1 . Hauler Manifests 1 | . . . 1 . . . . . . . . . Registered Components 1 | . . . 1 . . . . . . . . . Fabricator Hacks . | . . . . . . . . . . . . . Repair Station Hacks . | . . . . . . . . . . . . . Recycling Unit Hacks 2 | . 1 . 1 . . . . . . . . . Retrieve Components 2 | . 1 . 1 . . . . . . . . . Scanalyzer . | . . . . . . . . . . . . . Garrison Access Hacks 1 | . . . . . . . . 1 . . . . Seal Access 1 | . . . . . . . . 1 . . . . Unauthorized Hacks . | . . . . . . . . . . . . . Terminals . | . . . . . . . . . . . . . Fabricators . | . . . . . . . . . . . . . Repair Stations . | . . . . . . . . . . . . . Recycling Units . | . . . . . . . . . . . . . Scanalyzers . | . . . . . . . . . . . . . Garrison Access . | . . . . . . . . . . . . . Data Cores Recovered . | . . . . . . . . . . . . . Used . | . . . . . . . . . . . . . Hacking Detections 14 | . 6 . 3 . . . 1 4 . . . . Full Trace Events 2 | . 2 . . . . . . . . . . . Feedback Events . | . . . . . . . . . . . . . Feedback Blocked . | . . . . . . . . . . . . . Robot Schematics Acquired 3 | . . . . . 3 . . . . . . . Robots Built . | . . . . . . . . . . . . . Authchips . | . . . . . . . . . . . . . Time . | . . . . . . . . . . . . . Total Robot Build Rating . | . . . . . . . . . . . . . Part Schematics Acquired 15 | . . . 1 . 14 . . . . . . . Parts Built . | . . . . . . . . . . . . . Authchips . | . . . . . . . . . . . . . Time . | . . . . . . . . . . . . . Total Part Build Rating . | . . . . . . . . . . . . . Parts Repaired . | . . . . . . . . . . . . . Time . | . . . . . . . . . . . . . Parts Recycled . | . . . . . . . . . . . . . Recycled Matter . | . . . . . . . . . . . . . Retrieved Matter . | . . . . . . . . . . . . . Retrieved Components 12 | . 3 . 9 . . . . . . . . . Parts Scanalyzed . | . . . . . . . . . . . . . Part Schematics Acquired . | . . . . . . . . . . . . . Parts Damaged . | . . . . . . . . . . . . . Bothacking | -11 -10 -10 -9 -9 -7 -6 -6 -5 -5 -5 -5 -4 ------------ Run | Yrd Mat Min Mat Min Zio Pro Fac Fac Upp Upp War Pro Used RIF Installer . | . . . . . . . . . . . . . Robots Hacked . | . . . . . . . . . . . . . Non-combat . | . . . . . . . . . . . . . Combat . | . . . . . . . . . . . . . Robot Hacks Applied . | . . . . . . . . . . . . . Relay Couplers Released . | . . . . . . . . . . . . . Fabnet Peak Effective % . | . . . . . . . . . . . . . Robots Rewired . | . . . . . . . . . . . . . Allies Hacked . | . . . . . . . . . . . . . Hacks Repelled . | . . . . . . . . . . . . . Allies | -11 -10 -10 -9 -9 -7 -6 -6 -5 -5 -5 -5 -4 -------- Run | Yrd Mat Min Mat Min Zio Pro Fac Fac Upp Upp War Pro Total Allies 1 | . . . . 1 . . . . . . . . Largest Group 1 | . . . . 1 1 1 1 . . . . . Highest-Rated Group 31 | . . . . 31 31 31 31 . . . . . Highest-Rated Ally 31 | . . . . 31 31 31 31 . . . . . Total Orders . | . . . . . . . . . . . . . Ally Attacks 51 | . . . . 14 . 34 3 . . . . . Total Damage 557 | . . . . 196 . 339 22 . . . . . Kills 10 | . . . . 6 . 4 . . . . . . Allies Corrupted . | . . . . . . . . . . . . . Allies Melted . | . . . . . . . . . . . . . Intel | -11 -10 -10 -9 -9 -7 -6 -6 -5 -5 -5 -5 -4 ------- Run | Yrd Mat Min Mat Min Zio Pro Fac Fac Upp Upp War Pro Robot Analysis Total . | . . . . . . . . . . . . . Derelict Logs Recovered 11 | . . 1 . 2 1 3 . . 1 2 . 1 Drone Launches . | . . . . . . . . . . . . . Drone Recoveries . | . . . . . . . . . . . . . Exploration | -11 -10 -10 -9 -9 -7 -6 -6 -5 -5 -5 -5 -4 ------------- Run | Yrd Mat Min Mat Min Zio Pro Fac Fac Upp Upp War Pro Turns Passed 19878 | 110 2018 1563 2407 860 2340 1288 782 2881 1505 1854 1621 649 Spaces Moved 7877 | 52 575 452 865 321 945 518 215 911 551 721 627 1124 Core 51 | 3 37 . . . . . . . . . 4 7 Treads 5548 | 49 108 452 865 321 945 518 215 183 551 721 620 . Legs . | . . . . . . . . . . . . . Wheels 1161 | . 430 . . . . . . 728 . . 3 . Hover 129 | . . . . . . . . . . . . 129 Flight 988 | . . . . . . . . . . . . 988 Fastest Speed 26 | 50 160 312 235 240 240 240 240 167 247 247 50 26 Average Speed 223 | 153 313 335 242 240 240 240 242 236 247 247 245 42 Slowest Speed 1500 | 160 1500 480 312 240 240 240 325 490 247 247 247 180 Overloaded Moves . | . . . . . . . . . . . . . Propulsion Burnouts . | . . . . . . . . . . . . . Robots Hopped . | . . . . . . . . . . . . . Cave-ins Triggered . | . . . . . . . . . . . . . Exploration Rate (%) 63 | 4 85 94 74 80 79 79 6 32 67 91 68 63 Regions Visited 12 Branch Regions 8 Pre-discovered Areas 5 | . . . . 1 3 . . . 1 . . . Known Exits Taken 4 | . . . . . . 1 . 1 . 1 1 . Unknown Exits Taken 8 | 1 1 1 1 1 1 . 1 . 1 . . . Scrap Searched 14 | . . 1 . 2 4 3 . . 2 1 . 1 Spaces Dug 46 | . . . 8 . . 8 8 . . 18 . 4 Terrain Destroyed 384 | . . . 49 2 . 23 13 96 114 63 2 22 Melee . | . . . . . . . . . . . . . Projectile 39 | . . . 1 2 . . . 10 . 2 2 22 AOE 345 | . . . 48 . . 23 13 86 114 61 . . Terrain Rammed . | . . . . . . . . . . . . . Walls Destroyed . | . . . . . . . . . . . . . Machines Disabled . | . . . . . . . . . . . . . Actions | -11 -10 -10 -9 -9 -7 -6 -6 -5 -5 -5 -5 -4 --------- Run | Yrd Mat Min Mat Min Zio Pro Fac Fac Upp Upp War Pro Total 9572 | 72 686 480 1043 400 1031 549 429 1506 654 768 706 1248 Wait 967 | 7 24 6 26 72 60 7 171 420 67 3 45 59 Move 7866 | 51 574 451 864 320 944 517 214 910 550 720 627 1124 Hop . | . . . . . . . . . . . . . Pick Up 94 | 1 18 3 20 1 9 3 1 24 1 5 6 2 Fast Attach 53 | 8 . 3 7 . . . 1 16 1 3 3 11 Attach 39 | . 4 . 3 . . . 9 11 . . 3 9 Detach 11 | 1 . . . . . . . 2 . . . 8 Swap 77 | . 6 2 15 . 7 2 6 19 7 8 5 . Drop 97 | . . 1 31 1 11 3 . 22 2 11 13 2 Fire 361 | 4 60 12 76 6 . 17 25 81 26 18 3 33 Melee 2 | . . . . . . . 2 . . . . . Ram 1 | . . . . . . . . . . . 1 . Kick . | . . . . . . . . . . . . . Crush 4 | . . 2 1 . . . . 1 . . . . Escape Stasis . | . . . . . . . . . . . . . Rewire . | . . . . . . . . . . . . . Trap . | . . . . . . . . . . . . . Miscellaneous . | . . . . . . . . . . . . . Route ------- -11/Scrapyard -10/Materials (discovered 4 exits: *Mat x3 / *Min) -10/Mines (discovered 2 exits: *Mat x2) -9/Materials (discovered 2 exits: [*Mat] / [*Min]) -9/Mines (discovered 2 exits: [*Mat] / [*Zio]) -7/Zion -6/Proximity Caves -6/Factory (discovered 2 exits: *Fac / Low) -5/Factory -5/Upper Caves -5/Upper Caves -5/Warlord -4/Proximity Caves History --------- Turn | Location | Event 14 | -11/Scrapyard | Discovered new exit (range 16) 111 | -11/Scrapyard | Entered Materials 170 | -10/Materials | Discovered new exit (range 15) 303 | -10/Materials | Build established: Mutant 439 | -10/Materials | Discovered new exit (range 13) 972 | -10/Materials | Discovered new exit (range 11) 1259 | -10/Materials | Lost 3 parts (1p1n1w) 1492 | -10/Materials | Discovered new exit (range 9) 2129 | -10/Materials | Entered Mines 2309 | -10/Mines | Received a Rocket Launcher from a helpful Derelict 2357 | -10/Mines | Discovered new exit (range 12) 2411 | -10/Mines | Met a Derelict who couldn't figure out how to use a Trap Extractor 2599 | -10/Mines | Discovered new exit (range 9) 2739 | -10/Mines | A weapon hastily lodged in a ceiling crevice suddenly fell to the ground 3145 | -10/Mines | Core integrity fell below 50% 3402 | -10/Mines | Found a damaged Exp. Sensor Array with a note attached 3692 | -10/Mines | Entered Materials 3692 | -9/Materials | Evolved 2 slots: Propulsion x1, Utility x1 4001 | -9/Materials | Central database locked down 5477 | -9/Materials | Discovered new exit (range 16) 5591 | -9/Materials | Build established: Scavenger-Mutant 5667 | -9/Materials | Discovered new exit (range 10) 5986 | -9/Materials | Build established: Mutant 6099 | -9/Materials | Entered Mines 6100 | -9/Mines | Met a Derelict testing a Signal Generator 6225 | -9/Mines | Assembled infested the area 6890 | -9/Mines | Learned location of Storage (-7) 6921 | -9/Mines | Discovered new exit (range 9) 6926 | -9/Mines | A Derelict revealed a hidden shortcut to a safe place 6959 | -9/Mines | Entered Zion 6959 | -7/Zion | Accompanied by 1 ally 7075 | -7/Zion | Given the Hacking Drone Bay 7307 | -7/Zion | Learned location of Armory (-3) 7733 | -7/Zion | Given A8's code to call for help 8769 | -7/Zion | Visited the Megawrench Repair Shop 8769 | -7/Zion | Megawrench repaired 8 parts 8831 | -7/Zion | Discovered new exit (range 14) 9299 | -7/Zion | Entered Proximity Caves 9299 | -6/Proximity Caves | Accompanied by 1 ally 9300 | -6/Proximity Caves | Identified exit to Factory 9302 | -6/Proximity Caves | Spotter reported a threat 9302 | -6/Proximity Caves | Spotter reported a threat 9355 | -6/Proximity Caves | Spotter reported a threat 9539 | -6/Proximity Caves | Spotter reported a threat 10098 | -6/Proximity Caves | Learned Factory stockpile data 10587 | -6/Proximity Caves | Entered Factory 10587 | -6/Factory | Accompanied by 1 ally 10587 | -6/Factory | Evolved 6 slots: Propulsion x1, Utility x4, Weapon x1 10588 | -6/Factory | Identified exit to Lower Caves 10897 | -6/Factory | Garrison activated, responded to threat 10919 | -6/Factory | Build established: Derelict-Tank 10937 | -6/Factory | Search patrols dispatched 11287 | -6/Factory | Search patrols dispatched 11351 | -6/Factory | Discovered new exit (range 8) 11369 | -6/Factory | Entered another Factory area 11369 | -5/Factory | Evolved 2 slots: Power x1, Utility x1 11370 | -5/Factory | Identified exit to Upper Caves 11400 | -5/Factory | Lost 4 parts (1p2n1u) 11642 | -5/Factory | Lost 5 parts (2n1u2w) 11662 | -5/Factory | Build established: Scavenger-Gunner 11683 | -5/Factory | Garrison activated, responded to threat 11823 | -5/Factory | Lost 3 parts (2n1u) 14250 | -5/Factory | Entered Upper Caves 14255 | -5/Upper Caves | Spotted B-75 Beast 14902 | -5/Upper Caves | Attracted the attention of an 0b10 checkpoint 15687 | -5/Upper Caves | Discovered new exit (range 12) 15755 | -5/Upper Caves | Entered another Upper Caves area 15806 | -5/Upper Caves | Attacked by a delusional Derelict stockpiling parts 16899 | -5/Upper Caves | Learned Factory garrison access intel 16946 | -5/Upper Caves | Learned Factory terminal intel 17581 | -5/Upper Caves | Discovered new exit (range 10) 17607 | -5/Upper Caves | Identified exit to Warlord 17609 | -5/Upper Caves | Entered Warlord 17701 | -5/Warlord | System corruption cleaned by Quarantine Array 18305 | -5/Warlord | Visited the Vortex Lab 18311 | -5/Warlord | Warlord's base attacked by MAIN.C 18329 | -5/Warlord | Found Prototype Energy Gun 18329 | -5/Warlord | Identified Vortex Shotgun 18333 | -5/Warlord | Found Vortex Shotgun 18567 | -5/Warlord | Met Warlord 18661 | -5/Warlord | Warlord forces counterattacked 18986 | -5/Warlord | Warlord base infiltrated, sounded retreat 19025 | -5/Warlord | Spotted Striker 19070 | -5/Warlord | Lost 5 allies 19202 | -5/Warlord | Discovered new exit (range 14) 19211 | -5/Warlord | Spotted Striker 19211 | -5/Warlord | Spotted Striker 19222 | -5/Warlord | Core integrity fell below 50% 19229 | -5/Warlord | Identified exit to Proximity Caves 19230 | -5/Warlord | Core integrity fell below 20% 19230 | -5/Warlord | Entered Proximity Caves 19258 | -4/Proximity Caves | Lost 4 parts (1n3u) 19477 | -4/Proximity Caves | Learned Research interactive machine intel 19879 | -4/Proximity Caves | Destroyed by G-67 Veteran with Field Laser Last Messages --------------- Destroyed Autogun. S-27 Virus knocked back. S-27 Virus destroyed. Autogun fries itself beyond repair. HV Slug penetrates Wall. VTOL Module fries itself beyond repair. HV Slug penetrates Wall. S-27 Virus destroyed. HV Slug penetrates Wall. S-27 Virus destroyed. Autogun fries itself beyond repair. Acquired VTOL Module. HV Slug penetrates Earth. System corrupted: Component data lost. HV Slug penetrates Wall. System corrupted: Matter fused (-6). Acquired 60 matter. Acquired 4 matter. Acquired 24 matter. LD MAAIGDHNS,U7O5KH|4INR&RKHYYYG2IUQ# Map ----- +----------------------------------------------------+ | ##### #??????????????????????? | | ### #??????????????????????? | | ########## #?# #??????????????????????? | | #######??? #?## #??????????????????????? | | #### #### #??????????????????????? | | ## ## #??????????????????????? | | ### ## #??????????????????????? | | ##??# ## #??????????????????????? | | ### ########### ## #??????????????????????? | | ##??###??## # ####???????????????????? | | #??????### +???????????????????? | | ##????## +???????????????????? | | ###### ## +???????????????????? | | # # +???????????????????? | | ### ## ### #### +???????????????????? | | ### ## #?####??##########???????????????????? | | ###??????????????????????????????????? | | ##?????????????????????????????????? | | #?????????????????????????????????? | | ### #?????????????????????????????????? | | ### #?????????????????????????????????? | | ### #???????####??????????????????????? | | #?## ##?????### ########???????????????? | | #???# ######## #???????????????? | | ## #???#### ug ######???????????????? | | ### #????# ## @###????????????????????? | | #### ####????## ######??????????????????????? | | ######???????# ##???????????????????????????? | | ##### #????#### ##????????????????????????????? | | #???## #????#####????#####???????????? | | ##???# ###### ###?## ##??????????? | | ######????# "### ##???????? ? | | #?????????## " ## ???##?? ? | | #######?????# ##"#### ??? ## | | # ####??# ####### #??? | | # #??# #????# ##? | | # #???### ## ##??## ## ?? | | # #??????# ## #### #???? | | # #??????## ## #????? | | # #??????## ## #????? | | ### #???#### ### #???? | | ### ##### ##?# ## #????? | | ## ## ##??# ##??? ##????? | | ## ### #???#### #??????##?????? | | ## ##### ##??????## ##?????????????? | | #### #???????## #??????????????? | | "# ##??????# ##??????????????? | | # #??????# ##???????????????? | | ## #??????# ##????????????????? | | ## ### #?????# ##?????????????????? | +----------------------------------------------------+ Best States ------------- Heat Dissipation 71 Energy Generation 33 Energy Capacity 530 Matter Stores 300 Matter Capacity 300 Sight Range 16 Terrain Scan Density 10 Armor Coverage 750 Resistance: KI 25 Weapon Cycling 15 Evasion (%) 64 Targeting Accuracy 14 Melee Accuracy 6 Core Analysis 6 Recoil Reduction 4 Item Schematics ----------------- Huge Storage Unit | -9/Materials | Hacked Weapon Cycler | -7/Zion | Archive Angular Momentum Engine | -7/Zion | Archive Imp. EM Pulse Cannon | -7/Zion | Archive Proton Cannon | -7/Zion | Archive Great Axe | -7/Zion | Archive Imp. Proton Missile Launcher | -7/Zion | Archive Imp. Melee Analysis Suite | -7/Zion | Archive Magnetic Acceleration Cannon | -7/Zion | Archive Chainsword | -7/Zion | Archive Imp. Remote Datajack | -7/Zion | Archive Mass Driver | -7/Zion | Archive Xenon Bombardment Thruster | -7/Zion | Archive Imp. Medium Treads | -7/Zion | Archive Energy Well | -7/Zion | Archive Robot Schematics ------------------ L-41 Fighter | -7/Zion | Archive B-36 Bruiser | -7/Zion | Archive B-48 Gladiator | -7/Zion | Archive Fabricated ------------ Nothing Alien Tech Used ----------------- None Achievements -------------- A Powerful Ally? Charge!!! Challenges ------------ None Game ------ Seed TerrainGyrokineticConstruct Manual? 0 Play Time 01:24:22 Cumulative 72.0 hours Start 2024.09.04 @ 20:38:38 End 2024.09.04 @ 22:03:32 Sessions 1 Manual Loads 0 Difficulty Rogue Special Mode None Game No. 54 Rogue 54 Adventurer 0 Explorer 0 Win Type - Total 3 Types 3/0/0/0/0/0/0/0/0 Lore% 27 Gallery% 39 Achievement% 36 Wizard Run 0 Options --------- Layout 0 ASCII 0 Keyboard 0 Movement Mouse Keybinds 0 Fullscreen 1 Font 18/SmallcapsGlow Map View 76x50 Zoom Use 0% Tactical HUD 0 Map Filters NONE Filters NONE Steam 1 RUN: 9ce55249-4736-4249-ba75-278650b6ceea